fUST/lending_fUST_20240925
["ID","MTS","AMOUNT","RATE_DAILY","PERIOD"]
[339093443,1727239854654,-500.0,0.00016438,2]
[339093444,1727239854663,-926.9,0.00016438,2]
[339093445,1727239854671,-500.0,0.00016438,2]
[339093446,1727239854681,-500.0,0.00016438,2]
[339093447,1727239854690,-4804.72,0.00016438,2]
[339093448,1727239854699,-211.8992821,0.00016438,2]
[339093449,1727239854708,-511.75383957,0.00016438,2]
[339093450,1727239854719,-500.0,0.00016438,2]
[339093451,1727239854729,-500.0,0.00016438,2]
[339093452,1727239854738,-647.08,0.00016438,2]
[339093453,1727239854747,-1151.51,0.00016438,2]
[339093454,1727239854757,-508.55,0.00016438,2]
[339093455,1727239854766,-507.98221229,0.00016438,2]
[339093456,1727239854775,-500.0,0.00016438,2]
[339093457,1727239854788,-1022.74,0.00016438,2]
[339093458,1727239854799,-500.0,0.00016438,2]
[339093459,1727239854811,-717.39,0.00016438,2]
[339093460,1727239854822,-501.71030824,0.00016438,2]
[339093461,1727239854832,-500.0,0.00016438,2]
[339093462,1727239854841,-500.0,0.00016438,2]
[339093463,1727239854852,-666.99,0.00016438,2]
[339093464,1727239854861,-500.0,0.00016438,2]
[339093465,1727239854871,-501.07083175,0.00016438,2]
[339093466,1727239854882,-500.0,0.00016438,2]
[339093467,1727239854892,-500.0,0.00016438,2]
[339093468,1727239854902,-165.4069393,0.00016438,2]
[339093469,1727239854913,-533.06619255,0.00016438,2]
[339093470,1727239854923,-151.0,0.00016438,2]
[339093471,1727239854933,-232.330211,0.00016438,2]
[339093472,1727239854942,-500.0,0.00016438,2]
[339093473,1727239854951,-547.65287999,0.00016438,2]
[339093474,1727239854961,-1069.57,0.00016438,2]
[339093475,1727239854969,-1180.884389,0.00016438,2]
[339093476,1727239854978,-502.29077958,0.00016438,2]
[339093477,1727239854987,-1180.884389,0.00016438,2]
[339093478,1727239854996,-1180.884389,0.00016438,2]
[339093479,1727239855005,-500.0,0.00016438,2]
[339093480,1727239855022,-1180.884389,0.00016438,2]
[339093481,1727239855031,-1180.884389,0.00016438,2]
[339093482,1727239855041,-500.0,0.00016438,2]
[339093483,1727239855050,-500.87146376,0.00016438,2]
[339093484,1727239855060,-1180.884389,0.00016438,2]
[339093485,1727239855069,-1180.884389,0.00016438,2]
[339093486,1727239855079,-1180.884389,0.00016438,2]
[339093487,1727239855088,-500.0,0.00016438,2]
[339093488,1727239855098,-1180.884389,0.00016438,2]
[339093489,1727239855110,-1180.884388,0.00016438,2]
[339093490,1727239855121,-903.3,0.00016438,2]
[339093491,1727239855131,-965.95,0.00016438,2]
[339093492,1727239855141,-282.01,0.00016438,2]
[339093493,1727239855152,-500.0,0.00016438,2]
[339093494,1727239855162,-500.0,0.00016438,2]
[339093495,1727239855171,-1058.31,0.00016438,2]
[339093496,1727239855181,-839.11,0.00016438,2]
[339093497,1727239855191,-500.0,0.00016438,2]
[339093498,1727239855203,-500.0,0.00016438,2]
[339093499,1727239855214,-960.750512,0.00016438,2]
[339093500,1727239855224,-960.750512,0.00016438,2]
[339093501,1727239855234,-960.750512,0.00016438,2]
[339093502,1727239855245,-960.750512,0.00016438,2]
[339093503,1727239855255,-960.750512,0.00016438,2]
[339093504,1727239855267,-957.29,0.00016438,2]
[339093505,1727239855276,-501.12979413,0.00016438,2]
[339093506,1727239855284,-500.0,0.00016438,2]
[339093507,1727239855294,-445.891827,0.00016438,2]
[339093508,1727239855303,-500.0,0.00016438,2]
[339093509,1727239855313,-445.891827,0.00016438,2]
[339093510,1727239855322,-960.750512,0.00016438,2]
[339093511,1727239855333,-960.750512,0.00016438,2]
[339093512,1727239855343,-445.891827,0.00016438,2]
[339093513,1727239855353,-960.750512,0.00016438,2]
[339093514,1727239855362,-445.891827,0.00016438,2]
[339093515,1727239855371,-960.750512,0.00016438,2]
[339093516,1727239855380,-960.750522,0.00016438,2]
[339093517,1727239855389,-500.0,0.00016438,2]
[339093518,1727239855398,-4414.59,0.00016438,2]
[339093519,1727239855407,-511.06119485,0.00016438,2]
[339093520,1727239855416,-500.0,0.00016438,2]
[339093521,1727239855425,-445.891827,0.00016438,2]
[339093522,1727239855434,-445.891827,0.00016438,2]
[339093523,1727239855444,-445.891827,0.00016438,2]
[339093524,1727239855454,-445.891833,0.00016438,2]
[339093525,1727239855463,-500.0,0.00016438,2]
[339093526,1727239855472,-500.0,0.00016438,2]
[339093527,1727239855480,-522.2567937,0.00016438,2]
[339093528,1727239855489,-500.0,0.00016438,2]
[339093529,1727239855499,-500.0,0.00016438,2]
[339093530,1727239855508,-504.05909663,0.00016438,2]
[339093531,1727239855517,-1728.28,0.00016438,2]
[339093532,1727239855526,-825.67,0.00016438,2]
[339093533,1727239855534,-549.19,0.00016438,2]
[339093534,1727239855543,-500.0,0.00016438,2]
[339093535,1727239855552,-515.25356676,0.00016438,2]
[339093536,1727239855561,-500.0,0.00016438,2]
[339093537,1727239855571,-500.0,0.00016438,2]
[339093538,1727239855580,-500.0,0.00016438,2]
[339093539,1727239855589,-500.0,0.00016438,2]
[339093540,1727239855599,-204.47624594,0.00016438,2]
[339093541,1727239855608,-210.50314184,0.00016438,2]
[339093542,1727239855617,-664.23,0.00016438,2]
[339093543,1727239855626,-500.0,0.00016438,2]
[339093544,1727239855636,-500.0,0.00016438,2]
[339093545,1727239855646,-500.0,0.00016438,2]
[339093546,1727239855656,-500.0,0.00016438,2]
[339093547,1727239855665,-500.0,0.00016438,2]
[339093548,1727239855675,-500.0,0.00016438,2]
[339093549,1727239855685,-500.0,0.00016438,2]
[339093550,1727239855694,-500.0,0.00016438,2]
[339093551,1727239855704,-500.0,0.00016438,2]
[339093552,1727239855714,-500.0,0.00016438,2]
[339093553,1727239855725,-500.0,0.00016438,2]
[339093554,1727239855735,-583.03,0.00016438,2]
[339093555,1727239855745,-500.0,0.00016438,2]
[339093556,1727239855754,-916.39,0.00016438,2]
[339093557,1727239855764,-500.0,0.00016438,2]
[339093558,1727239855773,-263.82765291,0.00016438,2]
[339093559,1727239855783,-500.0,0.00016438,2]
[339093560,1727239855792,-500.0,0.00016438,2]
[339093561,1727239855802,-646.44,0.00016438,2]
[339093562,1727239855812,-500.0,0.00016438,2]
[339093563,1727239855821,-500.0,0.00016438,2]
[339093564,1727239855830,-500.0,0.00016438,2]
[339093565,1727239855840,-1386.44,0.00016438,2]
[339093566,1727239855849,-500.0,0.00016438,2]
[339093567,1727239855859,-578.81,0.00016438,2]
[339093568,1727239855868,-1257.3,0.00016438,2]
[339093569,1727239855879,-500.85387924,0.00016438,2]
[339093570,1727239855888,-822.77,0.00016438,2]
[339093571,1727239855898,-745.56,0.00016438,2]
[339093572,1727239855908,-397.25881911,0.00016438,2]
[339093573,1727239855918,-500.3787007,0.00016438,2]
[339093574,1727239855928,-500.0,0.00016438,2]
[339093575,1727239855937,-500.0,0.00016438,2]
[339093576,1727239855948,-514.51284027,0.00016438,2]
[339093577,1727239855958,-500.0,0.00016438,2]
[339093578,1727239855968,-500.0,0.00016438,2]
[339093579,1727239855978,-500.0,0.00016438,2]
[339093580,1727239855988,-500.0,0.00016438,2]
[339093581,1727239855998,-500.0,0.00016438,2]
[339093582,1727239856008,-588.16,0.00016438,2]
[339093583,1727239856018,-500.0,0.00016438,2]
[339093584,1727239856028,-500.0,0.00016438,2]
[339093585,1727239856038,-537.36,0.00016438,2]
[339093586,1727239856047,-500.0,0.00016438,2]
[339093587,1727239856057,-500.0,0.00016438,2]
[339093588,1727239856067,-510.5055585,0.00016438,2]
[339093589,1727239856077,-509.30670106,0.00016438,2]
[339093590,1727239856086,-500.0,0.00016438,2]
[339093591,1727239856096,-617.820735,0.00016438,2]
[339093592,1727239856107,-558.07,0.00016438,2]
[339093593,1727239856117,-617.820735,0.00016438,2]
[339093594,1727239856129,-500.0,0.00016438,2]
[339093595,1727239856139,-617.820735,0.00016438,2]
[339093596,1727239856149,-519.60682558,0.00016438,2]
[339093597,1727239856159,-617.820735,0.00016438,2]
[339093598,1727239856169,-617.820735,0.00016438,2]
[339093599,1727239856182,-500.0,0.00016438,2]
[339093600,1727239856194,-500.0,0.00016438,2]
[339093601,1727239856204,-689.84,0.00016438,2]
[339093602,1727239856215,-502.85458803,0.00016438,2]
[339093603,1727239856225,-500.0,0.00016438,2]
[339093604,1727239856234,-617.820735,0.00016438,2]
[339093605,1727239856245,-617.820735,0.00016438,2]
[339093606,1727239856257,-617.820735,0.00016438,2]
[339093607,1727239856267,-617.820735,0.00016438,2]
[339093608,1727239856276,-617.820736,0.00016438,2]
[339093609,1727239856287,-500.0,0.00016438,2]
[339093610,1727239856297,-500.0,0.00016438,2]
[339093611,1727239856309,-500.0,0.00016438,2]
[339093612,1727239856319,-509.40183838,0.00016438,2]
[339093613,1727239856330,-500.0,0.00016438,2]
[339093614,1727239856340,-500.0,0.00016438,2]
[339093615,1727239856352,-500.0,0.00016438,2]
[339093616,1727239856364,-500.0,0.00016438,2]
[339093617,1727239856374,-500.0,0.00016438,2]
[339093618,1727239856385,-363.111173,0.00016438,2]
[339093619,1727239856412,-363.111173,0.00016438,2]
[339093620,1727239856422,-703.19,0.00016438,2]
[339093621,1727239856433,-500.0,0.00016438,2]
[339093622,1727239856444,-363.111173,0.00016438,2]
[339093623,1727239856456,-1022.01,0.00016438,2]
[339093624,1727239856466,-363.111173,0.00016438,2]
[339093625,1727239856476,-500.0,0.00016438,2]
[339093626,1727239856486,-501.75930275,0.00016438,2]
[339093627,1727239856497,-500.0,0.00016438,2]
[339093628,1727239856509,-542.96,0.00016438,2]
[339093629,1727239856519,-500.0,0.00016438,2]
[339093630,1727239856530,-366.31494594,0.00016438,2]
[339093631,1727239856542,-500.0,0.00016438,2]
[339093632,1727239856552,-363.111173,0.00016438,2]
[339093633,1727239856564,-363.111173,0.00016438,2]
[339093634,1727239856575,-464.19539959,0.00016438,2]
[339093635,1727239856586,-363.111173,0.00016438,2]
[339093636,1727239856598,-500.0,0.00016438,2]
[339093637,1727239856610,-363.111176,0.00016438,2]
[339093638,1727239856620,-500.0,0.00016438,2]
[339093639,1727239856631,-500.0,0.00016438,2]
[339093640,1727239856640,-500.0,0.00016438,2]
[339093641,1727239856651,-500.0,0.00016438,2]
[339093642,1727239856664,-500.0,0.00016438,2]
[339093643,1727239856673,-506.90914902,0.00016438,2]
[339093644,1727239856684,-295.56372211,0.00016438,2]
[339093645,1727239856694,-500.0,0.00016438,2]
[339093646,1727239856704,-500.0,0.00016438,2]
[339093647,1727239856714,-846.34,0.00016438,2]
[339093648,1727239856728,-500.0,0.00016438,2]
[339093649,1727239856738,-500.0,0.00016438,2]
[339093650,1727239856748,-500.0,0.00016438,2]
[339093651,1727239856759,-500.0,0.00016438,2]
[339093652,1727239856771,-500.0,0.00016438,2]
[339093653,1727239856781,-500.0,0.00016438,2]
[339093654,1727239856792,-1092.36,0.00016438,2]
[339093655,1727239856801,-500.0,0.00016438,2]
[339093656,1727239856810,-500.0,0.00016438,2]
[339093657,1727239856820,-500.0,0.00016438,2]
[339093658,1727239856830,-500.0,0.00016438,2]
[339093659,1727239856839,-759.54048,0.00016438,2]
[339093660,1727239856849,-759.54048,0.00016438,2]
[339093661,1727239856859,-759.54048,0.00016438,2]
[339093662,1727239856869,-759.54048,0.00016438,2]
[339093663,1727239856879,-500.0,0.00016438,2]
[339093664,1727239856891,-500.0,0.00016438,2]
[339093665,1727239856901,-500.0,0.00016438,2]
[339093666,1727239856910,-500.0,0.00016438,2]
[339093667,1727239856920,-759.54048,0.00016438,2]
[339093668,1727239856931,-500.0,0.00016438,2]
[339093669,1727239856941,-515.70041427,0.00016438,2]
[339093670,1727239856951,-500.0,0.00016438,2]
[339093671,1727239856961,-759.54048,0.00016438,2]
[339093672,1727239856973,-759.54048,0.00016438,2]
[339093673,1727239856984,-759.54048,0.00016438,2]
[339093674,1727239856994,-500.0,0.00016438,2]
[339093675,1727239857005,-759.54048,0.00016438,2]
[339093676,1727239857017,-759.540487,0.00016438,2]
[339093677,1727239857027,-500.0,0.00016438,2]
[339093678,1727239857038,-500.0,0.00016438,2]
[339093679,1727239857050,-500.0,0.00016438,2]
[339093680,1727239857061,-510.10826023,0.00016438,2]
[339093681,1727239857070,-500.0,0.00016438,2]
[339093682,1727239857081,-566.14180057,0.00016438,2]
[339093683,1727239857091,-500.0,0.00016438,2]
[339093684,1727239857102,-493.002,0.00016438,2]
[339093685,1727239857112,-500.0,0.00016438,2]
[339093686,1727239857124,-493.002,0.00016438,2]
[339093687,1727239857135,-493.002,0.00016438,2]
[339093688,1727239857146,-505.04432616,0.00016438,2]
[339093689,1727239857157,-493.002,0.00016438,2]
[339093690,1727239857167,-493.002,0.00016438,2]
[339093691,1727239857178,-500.0,0.00016438,2]
[339093692,1727239857188,-614.67,0.00016438,2]
[339093693,1727239857199,-500.0,0.00016438,2]
[339093694,1727239857211,-500.0,0.00016438,2]
[339093695,1727239857221,-317.44378655,0.00016438,2]
[339093696,1727239857231,-500.0,0.00016438,2]
[339093697,1727239857242,-500.0,0.00016438,2]
[339093698,1727239857251,-493.002,0.00016438,2]
[339093699,1727239857262,-493.002,0.00016438,2]
[339093700,1727239857272,-493.002,0.00016438,2]
[339093701,1727239857283,-500.0,0.00016438,2]
[339093702,1727239857293,-493.002,0.00016438,2]
[339093703,1727239857304,-493.002,0.00016438,2]
[339093704,1727239857315,-595.16335619,0.00016438,2]
[339093705,1727239857327,-500.0,0.00016438,2]
[339093706,1727239857337,-500.0,0.00016438,2]
[339093707,1727239857347,-500.0,0.00016438,2]
[339093708,1727239857357,-715.1,0.00016438,2]
[339093709,1727239857369,-500.0,0.00016438,2]
[339093710,1727239857379,-500.0,0.00016438,2]
[339093711,1727239857388,-500.0,0.00016438,2]
[339093712,1727239857398,-500.0,0.00016438,2]
[339093713,1727239857407,-500.0,0.00016438,2]
[339093714,1727239857417,-500.0,0.00016438,2]
[339093715,1727239857426,-500.0,0.00016438,2]
[339093716,1727239857436,-500.0,0.00016438,2]
[339093717,1727239857445,-500.0,0.00016438,2]
[339093718,1727239857455,-500.0,0.00016438,2]
[339093719,1727239857464,-604.00328427,0.00016438,2]
[339093720,1727239857473,-6608.960512,0.00016438,2]
[339093721,1727239857483,-6608.960512,0.00016438,2]
[339093722,1727239857493,-2204.17,0.00016438,2]
[339093723,1727239857503,-6608.960512,0.00016438,2]
[339093724,1727239857512,-569.79,0.00016438,2]
[339093725,1727239857522,-4361.33328058,0.00016438,2]
[339093726,1727239857715,-35.11925591,0.00016045,2]
[339093727,1727239858428,363.52,0.00010959,2]
[339093740,1727240437261,-204.0,0.00015083,2]
[339093741,1727240437285,-300.0,0.00015083,2]
[339093742,1727240437310,-500.0,0.00015083,2]
[339093743,1727240437333,-24900.0,0.00015084,2]
[339093744,1727240437357,-237.5,0.00015512,2]
[339093745,1727240437381,-237.5,0.00015555,2]
[339093746,1727240437405,-237.5,0.00015598,2]
[339093747,1727240437428,-237.5,0.0001564,2]
[339093748,1727240437453,-237.5,0.00015683,2]
[339093749,1727240437478,-237.5,0.00015725,2]
[339093750,1727240437501,-237.5,0.00015768,2]
[339093751,1727240437524,-237.5,0.0001581,2]
[339093752,1727240437547,-237.5,0.00015853,2]
[339093753,1727240437571,-237.5,0.00015895,2]
[339093754,1727240437596,-153.0,0.000159,2]
[339093755,1727240437620,-153.0,0.000159,2]
[339093756,1727240437646,-153.0,0.000159,2]
[339093757,1727240437671,-153.0,0.000159,2]
[339093758,1727240437694,-237.5,0.00015938,2]
[339093759,1727240437726,-237.5,0.0001598,2]
[339093760,1727240437750,-153.0,0.00016,2]
[339093761,1727240437777,-153.0,0.00016,2]
[339093762,1727240437800,-153.0,0.00016,2]
[339093763,1727240437824,-237.5,0.00016023,2]
[339093764,1727240437851,-237.5,0.00016066,2]
[339093765,1727240437877,-237.5,0.00016108,2]
[339093766,1727240437902,-237.5,0.00016151,2]
[339093767,1727240437925,-150.0,0.00016182,2]
[339093768,1727240437952,-7146.18197968,0.00016192,2]
[339093769,1727240437977,-237.5,0.00016193,2]
[339093770,1727240438001,-237.5,0.00016236,2]
[339093771,1727240438025,-237.5,0.00016278,2]
[339093772,1727240438049,-1000.0,0.00016296,2]
[339093773,1727240438073,-237.5,0.00016321,2]
[339093774,1727240438095,-3000.0,0.00016328,2]
[339093775,1727240438118,-1863.6684525,0.00016338,2]
[339093776,1727240438141,-500.0,0.00016388,2]
[339093777,1727240438164,-151.0,0.00016408,2]
[339093778,1727240438186,-151.0,0.00016417,2]
[339093779,1727240438209,-151.0,0.00016417,2]
[339093780,1727240438234,-235.061412,0.00016418,2]
[339093781,1727240438258,-345.58635092,0.00016427,2]
[339093782,1727240438284,-500.0,0.00016427,2]
[339093783,1727240438309,-346.1323444,0.00016427,2]
[339093784,1727240438331,-156.3951862,0.00016427,2]
[339093785,1727240438355,-500.0,0.00016427,2]
[339093786,1727240438378,-222.46916463,0.00016427,2]
[339093787,1727240438401,-500.0,0.00016427,2]
[339093788,1727240438423,-101356.50510967,0.00016428,2]
[339093853,1727241037996,-300.0,0.00015415,2]
[339093854,1727241038006,-2918.30441574,0.00015416,2]
[339093855,1727241038122,-21981.69558426,0.00015416,2]
[339093856,1727241038131,-194.63628536,0.00016228,2]
[339093857,1727241038141,-194.63628536,0.00016251,2]
[339093858,1727241038150,-194.63628536,0.00016273,2]
[339093859,1727241038160,-7146.18197968,0.0001628,2]
[339093860,1727241038169,-194.63628536,0.00016296,2]
[339093861,1727241038179,-150.112233,0.000163,2]
[339093862,1727241038188,-150.112233,0.000163,2]
[339093863,1727241038198,-150.112233,0.000163,2]
[339093864,1727241038207,-194.63628536,0.00016318,2]
[339093865,1727241038216,-194.21372064,0.00016325,2]
[339093866,1727241038227,-176.5031387,0.00016325,2]
[339093867,1727241038237,-500.0,0.00016325,2]
[339093868,1727241038246,-390.63507439,0.00016325,2]
[339093869,1727241038256,-82.59299656,0.00016325,2]
[339093870,1727241038269,-307.42588519,0.00016325,2]
[339093871,1727241038278,-405.72478244,0.00016325,2]
[339093872,1727241038287,-500.0,0.00016325,2]
[339093873,1727241038297,-500.0,0.00016325,2]
[339093874,1727241038307,-175.26081982,0.00016326,2]
[339093875,1727241038317,-427324.7288126,0.00016326,2]
[339093876,1727241038326,-1000.0,0.00016328,2]
[339093877,1727241038336,-3000.0,0.00016338,2]
[339093878,1727241038345,-244.5775,0.00016356,2]
[339093879,1727241038354,-500.0,0.00016373,2]
[339093880,1727241038365,-500.0,0.00016373,2]
[339093881,1727241038374,-544.69957545,0.00016373,2]
[339093882,1727241038384,-171.55151427,0.00016373,2]
[339093883,1727241038393,-500.0,0.00016373,2]
[339093884,1727241038403,-500.0,0.00016373,2]
[339093885,1727241038412,-500.0,0.00016373,2]
[339093886,1727241038422,-500.0,0.00016373,2]
[339093887,1727241038432,-1677.30160725,0.00016373,2]
[339093888,1727241038441,-5000.0,0.000164,2]
[339093889,1727241038451,-150.112233,0.000164,2]
[339093890,1727241038462,-150.112233,0.000164,2]
[339093891,1727241038471,-150.112233,0.000164,2]
[339093892,1727241038481,-150.112233,0.000164,2]
[339093893,1727241038491,-150.112233,0.000164,2]
[339093894,1727241038500,-150.112233,0.000164,2]
[339093895,1727241038510,-150.112233,0.000164,2]
[339093896,1727241038519,-69331.2854423,0.00016408,2]
[339093897,1727241038528,-38893.3099075,0.00016417,2]
[339093898,1727241038538,-69331.2854423,0.00016417,2]
[339093899,1727241038547,-38893.3099075,0.00016418,2]
[339093900,1727241038556,-207993.856327,0.00016418,2]
[339093901,1727241038566,-38893.3099075,0.00016427,2]
[339093902,1727241038575,-160.0,0.00016427,2]
[339093903,1727241038584,-161.34813311,0.00016427,2]
[339093904,1727241038593,-160.60354751,0.00016427,2]
[339093905,1727241038604,-151.0,0.00016428,2]
[339093906,1727241038613,-493.002,0.00016428,2]
[339093907,1727241038623,-493.002,0.00016428,2]
[339093908,1727241038632,-151.0,0.00016428,2]
[339093909,1727241038641,-772.275919,0.00016428,2]
[339093910,1727241038651,-772.275919,0.00016428,2]
[339093911,1727241038660,-169.672405,0.00016428,2]
[339093912,1727241038670,-169.672405,0.00016428,2]
[339093913,1727241038679,-804.439014,0.00016428,2]
[339093914,1727241038689,-2003.910085,0.00016428,2]
[339093915,1727241038697,-804.439014,0.00016428,2]
[339093916,1727241038708,-194.950734,0.00016428,2]
[339093917,1727241038718,-477.273364,0.00016428,2]
[339093918,1727241038727,-2003.910085,0.00016428,2]
[339093919,1727241038736,-247.15522,0.00016428,2]
[339093920,1727241038745,-194.950734,0.00016428,2]
[339093921,1727241038754,-477.273364,0.00016428,2]
[339093922,1727241038764,-247.15522,0.00016428,2]
[339093923,1727241038774,-2083.0013655,0.00016428,2]
[339093924,1727241038783,-155573.23963,0.00016428,2]
[339093925,1727241038792,-69331.2854423,0.00016428,2]
[339093926,1727241038802,-170.37502958,0.00016437,2]
[339093927,1727241038812,-10106.44867399,0.00016437,2]
[339093928,1727241038822,-160.0,0.00016437,2]
[339093929,1727241038831,-500.0,0.00016438,2]
[339093930,1727241038841,-500.0,0.00016438,2]
[339093931,1727241038851,-500.0,0.00016438,2]
[339093932,1727241038861,-500.0,0.00016438,2]
[339093933,1727241038870,-500.0,0.00016438,2]
[339093934,1727241038879,-283.75725302,0.00016438,2]
[339093935,1727241038889,-477.8300067,0.00016438,2]
[339093936,1727241038899,-500.0,0.00016438,2]
[339093937,1727241038908,-500.0,0.00016438,2]
[339093938,1727241038917,-500.0,0.00016438,2]
[339093939,1727241038927,-500.0,0.00016438,2]
[339093940,1727241038937,-509.02146782,0.00016438,2]
[339093941,1727241038946,-500.0,0.00016438,2]
[339093942,1727241038955,-505.64431323,0.00016438,2]
[339093943,1727241038964,-500.0,0.00016438,2]
[339093944,1727241038974,-500.0,0.00016438,2]
[339093945,1727241038983,-500.0,0.00016438,2]
[339093946,1727241038993,-502.72031707,0.00016438,2]
[339093947,1727241039002,-673.92,0.00016438,2]
[339093948,1727241039012,-526.05436553,0.00016438,2]
[339093949,1727241039022,-500.0,0.00016438,2]
[339093950,1727241039031,-387.33955106,0.00016438,2]
[339093951,1727241039041,-500.0,0.00016438,2]
[339093952,1727241039051,-500.0,0.00016438,2]
[339093953,1727241039060,-517.46914724,0.00016438,2]
[339093954,1727241039069,-500.0,0.00016438,2]
[339093955,1727241039079,-500.0,0.00016438,2]
[339093956,1727241039088,-255.23525499,0.00016438,2]
[339093957,1727241039097,-500.0,0.00016438,2]
[339093958,1727241039107,-505.9836126,0.00016438,2]
[339093959,1727241039117,-254.40774702,0.00016438,2]
[339093960,1727241039126,-500.0,0.00016438,2]
[339093961,1727241039136,-500.0,0.00016438,2]
[339093962,1727241039147,-516.38882381,0.00016438,2]
[339093963,1727241039158,-500.0,0.00016438,2]
[339093964,1727241039167,-500.0,0.00016438,2]
[339093965,1727241039176,-500.0,0.00016438,2]
[339093966,1727241039185,-500.0,0.00016438,2]
[339093967,1727241039196,-511.25929439,0.00016438,2]
[339093968,1727241039205,-500.0,0.00016438,2]
[339093969,1727241039214,-500.0,0.00016438,2]
[339093970,1727241039223,-500.0,0.00016438,2]
[339093971,1727241039235,-500.0,0.00016438,2]
[339093972,1727241039247,-500.0,0.00016438,2]
[339093973,1727241039257,-500.0,0.00016438,2]
[339093974,1727241039267,-500.0,0.00016438,2]
[339093975,1727241039277,-500.0,0.00016438,2]
[339093976,1727241039286,-500.0,0.00016438,2]
[339093977,1727241039296,-507.49427834,0.00016438,2]
[339093979,1727241039305,-500.0,0.00016438,2]
[339093980,1727241039314,-500.0,0.00016438,2]
[339093981,1727241039324,-507.95582857,0.00016438,2]
[339093982,1727241039333,-500.0,0.00016438,2]
[339093983,1727241039342,-500.0,0.00016438,2]
[339093984,1727241039352,-500.0,0.00016438,2]
[339093985,1727241039361,-500.0,0.00016438,2]
[339093987,1727241039370,-500.0,0.00016438,2]
[339093988,1727241039379,-500.0,0.00016438,2]
[339093989,1727241039389,-506.10840459,0.00016438,2]
[339093990,1727241039398,-500.0,0.00016438,2]
[339093991,1727241039408,-500.0,0.00016438,2]
[339093993,1727241039418,-500.0,0.00016438,2]
[339093995,1727241039427,-500.0,0.00016438,2]
[339093997,1727241039436,-504.69926096,0.00016438,2]
[339093998,1727241039447,-500.0,0.00016438,2]
[339094001,1727241039458,-524.27,0.00016438,2]
[339094003,1727241039468,-500.0,0.00016438,2]
[339094005,1727241039477,-500.0,0.00016438,2]
[339094006,1727241039487,-502.28186706,0.00016438,2]
[339094008,1727241039496,-515.79892112,0.00016438,2]
[339094010,1727241039507,-500.0,0.00016438,2]
[339094012,1727241039517,-500.0,0.00016438,2]
[339094014,1727241039528,-752.19,0.00016438,2]
[339094016,1727241039538,-503.81702598,0.00016438,2]
[339094017,1727241039547,-500.0,0.00016438,2]
[339094019,1727241039556,-425.90275955,0.00016438,2]
[339094021,1727241039566,-500.0,0.00016438,2]
[339094023,1727241039575,-500.0,0.00016438,2]
[339094025,1727241039585,-623.38,0.00016438,2]
[339094027,1727241039595,-500.0,0.00016438,2]
[339094028,1727241039605,-500.0,0.00016438,2]
[339094029,1727241039616,-515.16581867,0.00016438,2]
[339094030,1727241039626,-500.0,0.00016438,2]
[339094031,1727241039636,-500.0,0.00016438,2]
[339094033,1727241039646,-503.95406092,0.00016438,2]
[339094034,1727241039656,-500.0,0.00016438,2]
[339094035,1727241039666,-501.76455017,0.00016438,2]
[339094036,1727241039675,-500.0,0.00016438,2]
[339094037,1727241039685,-500.0,0.00016438,2]
[339094038,1727241039693,-500.0,0.00016438,2]